fUST/lending_fUST_20251026
["ID","MTS","AMOUNT","RATE_DAILY","PERIOD"]
[392427854,1761465071468,-500.0,0.0001726,2]
[392427855,1761465071477,-500.0,0.0001726,2]
[392427856,1761465071486,-1511.53,0.0001726,2]
[392427857,1761465071495,-536.38,0.0001726,2]
[392427858,1761465071504,-500.0,0.0001726,2]
[392427859,1761465071514,-977.83,0.0001726,2]
[392427860,1761465071523,-242.4139435,0.0001726,2]
[392427861,1761465071532,-1018.09,0.0001726,2]
[392427862,1761465071541,-1217.77,0.0001726,2]
[392427863,1761465071550,-500.0,0.0001726,2]
[392427864,1761465071559,-735.46,0.0001726,2]
[392427865,1761465071567,-500.0,0.0001726,2]
[392427866,1761465071576,-500.0,0.0001726,2]
[392427867,1761465071586,-500.0,0.0001726,2]
[392427868,1761465071594,-532.95,0.0001726,2]
[392427869,1761465071603,-565.47,0.0001726,2]
[392427870,1761465071612,-928.31,0.0001726,2]
[392427871,1761465071621,-520.86,0.0001726,2]
[392427872,1761465071630,-500.0,0.0001726,2]
[392427873,1761465071639,-520.66334644,0.0001726,2]
[392427874,1761465071648,-500.0,0.0001726,2]
[392427875,1761465071657,-816.06,0.0001726,2]
[392427876,1761465071666,-500.0,0.0001726,2]
[392427877,1761465071677,-500.0,0.0001726,2]
[392427878,1761465071686,-1060.12,0.0001726,2]
[392427879,1761465071696,-500.0,0.0001726,2]
[392427880,1761465071705,-992.37,0.0001726,2]
[392427881,1761465071714,-1689.08,0.0001726,2]
[392427882,1761465071724,-1696.5,0.0001726,2]
[392427883,1761465071738,-500.0,0.0001726,2]
[392427884,1761465071747,-555.68,0.0001726,2]
[392427885,1761465071756,-523.61,0.0001726,2]
[392427886,1761465071765,-602.62,0.0001726,2]
[392427887,1761465071774,-500.0,0.0001726,2]
[392427888,1761465071783,-804.14,0.0001726,2]
[392427889,1761465071792,-938.7,0.0001726,2]
[392427890,1761465071801,-500.0,0.0001726,2]
[392427891,1761465071811,-1084.59,0.0001726,2]
[392427892,1761465071820,-500.0,0.0001726,2]
[392427893,1761465071831,-754.82,0.0001726,2]
[392427894,1761465071841,-672.45,0.0001726,2]
[392427895,1761465071850,-536.64,0.0001726,2]
[392427896,1761465071859,-665.25,0.0001726,2]
[392427897,1761465071869,-1084.62,0.0001726,2]
[392427898,1761465071878,-1054.59,0.0001726,2]
[392427899,1761465071887,-514.82,0.0001726,2]
[392427900,1761465071897,-500.0,0.0001726,2]
[392427901,1761465071907,-559.76,0.0001726,2]
[392427902,1761465071918,-500.0,0.0001726,2]
[392427903,1761465071933,-500.0,0.0001726,2]
[392427904,1761465071942,-624.18,0.0001726,2]
[392427905,1761465071952,-500.0,0.0001726,2]
[392427906,1761465071961,-588.78,0.0001726,2]
[392427907,1761465071972,-1181.93,0.0001726,2]
[392427908,1761465071981,-500.0,0.0001726,2]
[392427909,1761465071991,-913.81,0.0001726,2]
[392427910,1761465072001,-500.0,0.0001726,2]
[392427911,1761465072010,-1623.58,0.0001726,2]
[392427912,1761465072020,-500.0,0.0001726,2]
[392427913,1761465072029,-1892.25,0.0001726,2]
[392427914,1761465072039,-500.0,0.0001726,2]
[392427915,1761465072048,-500.0,0.0001726,2]
[392427916,1761465072058,-800.75,0.0001726,2]
[392427917,1761465072067,-500.0,0.0001726,2]
[392427918,1761465072077,-932.1,0.0001726,2]
[392427919,1761465072086,-500.0,0.0001726,2]
[392427920,1761465072095,-500.0,0.0001726,2]
[392427921,1761465072105,-2059.92,0.0001726,2]
[392427922,1761465072114,-2314.16,0.0001726,2]
[392427923,1761465072124,-1046.38,0.0001726,2]
[392427924,1761465072133,-500.0,0.0001726,2]
[392427925,1761465072142,-895.81,0.0001726,2]
[392427926,1761465072151,-748.72,0.0001726,2]
[392427927,1761465072160,-500.0,0.0001726,2]
[392427928,1761465072170,-500.0,0.0001726,2]
[392427929,1761465072179,-500.0,0.0001726,2]
[392427930,1761465072189,-1079.65,0.0001726,2]
[392427931,1761465072198,-566.6,0.0001726,2]
[392427932,1761465072207,-1178.12,0.0001726,2]
[392427933,1761465072217,-573.08,0.0001726,2]
[392427934,1761465072227,-1167.47,0.0001726,2]
[392427935,1761465072237,-1376.09,0.0001726,2]
[392427936,1761465072247,-500.0,0.0001726,2]
[392427937,1761465072256,-1805.66,0.0001726,2]
[392427938,1761465072266,-800.28,0.0001726,2]
[392427939,1761465072276,-504.37,0.0001726,2]
[392427940,1761465072285,-500.0,0.0001726,2]
[392427941,1761465072295,-507.77182377,0.0001726,2]
[392427942,1761465072305,-1306.14,0.0001726,2]
[392427943,1761465072314,-2926.42,0.0001726,2]
[392427944,1761465072324,-578.74,0.0001726,2]
[392427945,1761465072333,-500.0,0.0001726,2]
[392427946,1761465072342,-500.0,0.0001726,2]
[392427947,1761465072352,-1800.49,0.0001726,2]
[392427948,1761465072361,-12323.94,0.0001726,2]
[392427949,1761465072370,-500.0,0.0001726,2]
[392427950,1761465072380,-163.2361126,0.0001726,2]
[392427951,1761465072390,-860.45,0.0001726,2]
[392427952,1761465072399,-677.74,0.0001726,2]
[392427953,1761465072408,-1339.94,0.0001726,2]
[392427954,1761465072417,-1341.4,0.0001726,2]
[392427955,1761465072426,-577.94,0.0001726,2]
[392427956,1761465072435,-500.0,0.0001726,2]
[392427957,1761465072444,-500.0,0.0001726,2]
[392427958,1761465072455,-196.0,0.00017266,2]
[392427959,1761465072469,-196.0,0.00017295,2]
[392427960,1761465072478,-1000.0,0.00017321,2]
[392427961,1761465072487,-1000.0,0.00017321,2]
[392427962,1761465072503,-768.6191017,0.00017321,2]
[392427963,1761465072512,-288.9992083,0.00017321,2]
[392427964,1761465072521,-598.77289346,0.00017321,2]
[392427965,1761465072531,-1000.0,0.00017321,2]
[392427966,1761465072541,-1141.76002032,0.00017321,2]
[392427967,1761465072551,-1000.0,0.00017321,2]
[392427968,1761465072562,-676.34529036,0.00017321,2]
[392427969,1761465072571,-1000.0,0.00017321,2]
[392427970,1761465072580,-1000.0,0.00017321,2]
[392427971,1761465072589,-1000.0,0.00017321,2]
[392427972,1761465072598,-202.20140552,0.00017321,2]
[392427973,1761465072607,-1000.0,0.00017321,2]
[392427974,1761465072616,-717.11082579,0.00017321,2]
[392427975,1761465072626,-500.8914348,0.00017321,2]
[392427976,1761465072636,-1000.0,0.00017321,2]
[392427977,1761465072647,-1115.24443995,0.00017321,2]
[392427978,1761465072657,-462.48615631,0.00017321,2]
[392427979,1761465072667,-1000.0,0.00017321,2]
[392427980,1761465072676,-1000.0,0.00017321,2]
[392427981,1761465072686,-1000.0,0.00017321,2]
[392427982,1761465072696,-179.91384955,0.00017321,2]
[392427983,1761465072705,-1000.0,0.00017321,2]
[392427984,1761465072714,-829.56706991,0.00017321,2]
[392427985,1761465072724,-1000.0,0.00017321,2]
[392427986,1761465072736,-1000.0,0.00017321,2]
[392427987,1761465072747,-1000.0,0.00017321,2]
[392427988,1761465072758,-1000.0,0.00017321,2]
[392427989,1761465072768,-1000.0,0.00017321,2]
[392427990,1761465072776,-1000.0,0.00017321,2]
[392427991,1761465072786,-1000.0,0.00017321,2]
[392427992,1761465072795,-1000.0,0.00017321,2]
[392427993,1761465072804,-1000.0,0.00017321,2]
[392427994,1761465072813,-1000.0,0.00017321,2]
[392427995,1761465072822,-1000.0,0.00017321,2]
[392427996,1761465072832,-1000.0,0.00017321,2]
[392427997,1761465072841,-1000.0,0.00017321,2]
[392427998,1761465072850,-237.47008048,0.00017321,2]
[392427999,1761465072860,-1000.0,0.00017321,2]
[392428000,1761465072869,-1060.91886265,0.00017321,2]
[392428001,1761465072878,-1000.0,0.00017321,2]
[392428002,1761465072888,-1000.0,0.00017321,2]
[392428003,1761465072897,-1000.0,0.00017321,2]
[392428004,1761465072907,-716.04665995,0.00017321,2]
[392428005,1761465072916,-1000.0,0.00017321,2]
[392428006,1761465072929,-1000.0,0.00017321,2]
[392428007,1761465072938,-1000.0,0.00017321,2]
[392428008,1761465072947,-531.07594941,0.00017321,2]
[392428009,1761465072956,-1000.0,0.00017321,2]
[392428010,1761465072966,-919.77841348,0.00017321,2]
[392428011,1761465072976,-529.72570306,0.00017321,2]
[392428012,1761465072985,-1000.0,0.00017321,2]
[392428013,1761465072994,-332.26370797,0.00017321,2]
[392428014,1761465073004,-1000.0,0.00017321,2]
[392428015,1761465073013,-924.15493678,0.00017321,2]
[392428016,1761465073023,-1000.0,0.00017321,2]
[392428017,1761465073032,-1000.0,0.00017321,2]
[392428018,1761465073041,-1000.0,0.00017321,2]
[392428019,1761465073051,-1000.0,0.00017321,2]
[392428020,1761465073060,-1000.0,0.00017321,2]
[392428021,1761465073070,-501.62867031,0.00017321,2]
[392428022,1761465073080,-1000.0,0.00017321,2]
[392428023,1761465073089,-1000.0,0.00017321,2]
[392428024,1761465073098,-1000.0,0.00017321,2]
[392428025,1761465073108,-1006.93089372,0.00017321,2]
[392428026,1761465073118,-196.0,0.00017325,2]
[392428027,1761465073128,-450.1004346,0.00017348,2]
[392428028,1761465073138,-196.0,0.00017355,2]
[392428029,1761465073149,-196.0,0.00017385,2]
[392428030,1761465073158,-500.0,0.00017401,2]
[392428031,1761465073168,-196.0,0.00017415,2]
[392428032,1761465073177,-12459.21720859,0.00017434,2]
[392428033,1761465073186,-196.0,0.00017444,2]
[392428034,1761465073195,-196.0,0.00017474,2]
[392428035,1761465073204,-196.0,0.00017504,2]
[392428036,1761465073213,-157.177829,0.00017521,2]
[392428037,1761465073223,-196.0,0.00017534,2]
[392428038,1761465073232,-500.0,0.00017534,2]
[392428039,1761465073241,-500.0,0.00017534,2]
[392428040,1761465073250,-500.0,0.00017534,2]
[392428041,1761465073259,-500.0,0.00017534,2]
[392428042,1761465073267,-500.0,0.00017534,2]
[392428043,1761465073277,-500.0,0.00017534,2]
[392428044,1761465073286,-500.0,0.00017534,2]
[392428045,1761465073295,-500.0,0.00017534,2]
[392428046,1761465073304,-508.23,0.00017534,2]
[392428047,1761465073313,-730.25,0.00017534,2]
[392428048,1761465073322,-500.0,0.00017534,2]
[392428049,1761465073333,-500.0,0.00017534,2]
[392428050,1761465073342,-1000.0,0.00017534,2]
[392428051,1761465073353,-500.0,0.00017534,2]
[392428052,1761465073362,-500.0,0.00017534,2]
[392428053,1761465073371,-500.0,0.00017534,2]
[392428054,1761465073380,-500.0,0.00017534,2]
[392428055,1761465073389,-176.36511683,0.00017534,2]
[392428056,1761465073399,-500.0,0.00017534,2]
[392428057,1761465073408,-500.0,0.00017534,2]
[392428058,1761465073418,-500.0,0.00017534,2]
[392428059,1761465073427,-500.0,0.00017534,2]
[392428060,1761465073438,-500.0,0.00017534,2]
[392428061,1761465073448,-500.0,0.00017534,2]
[392428062,1761465073457,-500.0,0.00017534,2]
[392428063,1761465073468,-500.0,0.00017534,2]
[392428064,1761465073478,-500.0,0.00017534,2]
[392428065,1761465073488,-638.1,0.00017534,2]
[392428066,1761465073498,-510.06302191,0.00017534,2]
[392428067,1761465073508,-500.0,0.00017534,2]
[392428068,1761465073518,-500.0,0.00017534,2]
[392428069,1761465073529,-500.0,0.00017534,2]
[392428070,1761465073539,-500.0,0.00017534,2]
[392428071,1761465073550,-500.0,0.00017534,2]
[392428072,1761465073559,-500.0,0.00017534,2]
[392428073,1761465073568,-500.0,0.00017534,2]
[392428074,1761465073576,-500.0,0.00017534,2]
[392428075,1761465073585,-500.0,0.00017534,2]
[392428076,1761465073595,-852.77,0.00017534,2]
[392428077,1761465073605,-518.61732671,0.00017534,2]
[392428078,1761465073614,-1000.0,0.00017534,2]
[392428079,1761465073623,-500.0,0.00017534,2]
[392428080,1761465073632,-559.05619257,0.00017534,2]
[392428081,1761465073641,-742.96,0.00017534,2]
[392428082,1761465073650,-500.0,0.00017534,2]
[392428083,1761465073660,-1003.4,0.00017534,2]
[392428084,1761465073669,-1352.49,0.00017534,2]
[392428085,1761465073678,-500.0,0.00017534,2]
[392428086,1761465073687,-1883.36,0.00017534,2]
[392428087,1761465073695,-780.75,0.00017534,2]
[392428088,1761465073705,-747.54,0.00017534,2]
[392428089,1761465073714,-500.0,0.00017534,2]
[392428090,1761465073724,-500.0,0.00017534,2]
[392428091,1761465073733,-500.0,0.00017534,2]
[392428092,1761465073742,-500.0,0.00017534,2]
[392428093,1761465073751,-1022.71,0.00017534,2]
[392428094,1761465073761,-500.0,0.00017534,2]
[392428095,1761465073903,-500.0,0.00017534,2]
[392428096,1761465073913,-500.0,0.00017534,2]
[392428097,1761465073927,-816.59,0.00017534,2]
[392428098,1761465073938,-500.0,0.00017534,2]
[392428099,1761465073947,-1068.51,0.00017534,2]
[392428100,1761465073956,-530.70395124,0.00017534,2]
[392428101,1761465073966,-500.0,0.00017534,2]
[392428102,1761465073975,-751.87,0.00017534,2]
[392428103,1761465073984,-1197.52,0.00017534,2]
[392428104,1761465073993,-1161.27,0.00017534,2]
[392428105,1761465074003,-500.0,0.00017534,2]
[392428106,1761465074012,-500.0,0.00017534,2]
[392428107,1761465074021,-500.0,0.00017534,2]
[392428108,1761465074031,-722.78,0.00017534,2]
[392428109,1761465074041,-1139.52,0.00017534,2]
[392428110,1761465074050,-694.35,0.00017534,2]
[392428111,1761465074059,-1024.4,0.00017534,2]
[392428112,1761465074068,-500.0,0.00017534,2]
[392428113,1761465074078,-470.09290757,0.00017534,2]
[392428114,1761465074087,-500.0,0.00017534,2]
[392428115,1761465074096,-500.0,0.00017534,2]
[392428116,1761465074105,-500.0,0.00017534,2]
[392428117,1761465074114,-500.0,0.00017534,2]
[392428118,1761465074123,-604.05,0.00017534,2]
[392428119,1761465074132,-500.0,0.00017534,2]
[392428120,1761465074141,-500.0,0.00017534,2]
[392428121,1761465074151,-500.0,0.00017534,2]
[392428122,1761465074160,-500.0,0.00017534,2]
[392428123,1761465074168,-500.0,0.00017534,2]
[392428124,1761465074178,-500.0,0.00017534,2]
[392428125,1761465074187,-500.0,0.00017534,2]
[392428126,1761465074196,-528.42699697,0.00017534,2]
[392428127,1761465074205,-500.0,0.00017534,2]
[392428128,1761465074214,-500.0,0.00017534,2]
[392428129,1761465074223,-720.79,0.00017534,2]
[392428130,1761465074232,-822.01,0.00017534,2]
[392428131,1761465074241,-500.0,0.00017534,2]
[392428132,1761465074250,-500.0,0.00017534,2]
[392428133,1761465074259,-791.3,0.00017534,2]
[392428134,1761465074268,-1373.22,0.00017534,2]
[392428135,1761465074278,-500.0,0.00017534,2]
[392428136,1761465074287,-500.0,0.00017534,2]
[392428137,1761465074295,-1124.15,0.00017534,2]
[392428138,1761465074305,-1133.45,0.00017534,2]
[392428139,1761465074313,-500.0,0.00017534,2]
[392428140,1761465074322,-500.0,0.00017534,2]
[392428141,1761465074331,-579.37,0.00017534,2]
[392428142,1761465074340,-506.60603825,0.00017534,2]
[392428143,1761465074349,-834.52,0.00017534,2]
[392428144,1761465074358,-734.95,0.00017534,2]
[392428145,1761465074367,-500.0,0.00017534,2]
[392428146,1761465074377,-500.0,0.00017534,2]
[392428147,1761465074386,-500.0,0.00017534,2]
[392428148,1761465074395,-500.0,0.00017534,2]
[392428149,1761465074404,-500.0,0.00017534,2]
[392428150,1761465074413,-500.0,0.00017534,2]
[392428151,1761465074422,-519.96,0.00017534,2]
[392428152,1761465074431,-500.0,0.00017534,2]
[392428153,1761465074440,-500.0,0.00017534,2]
[392428154,1761465074448,-500.0,0.00017534,2]
[392428155,1761465074457,-1043.96,0.00017534,2]
[392428156,1761465074466,-500.0,0.00017534,2]
[392428157,1761465074475,-717.23,0.00017534,2]
[392428158,1761465074485,-500.0,0.00017534,2]
[392428159,1761465074494,-754.11,0.00017534,2]
[392428160,1761465074503,-500.0,0.00017534,2]
[392428161,1761465074512,-500.0,0.00017534,2]
[392428162,1761465074521,-351.0992614,0.00017534,2]
[392428163,1761465074530,-500.0,0.00017534,2]
[392428164,1761465074539,-500.0,0.00017534,2]
[392428165,1761465074547,-596.45,0.00017534,2]
[392428166,1761465074556,-556.7,0.00017534,2]
[392428167,1761465074565,-500.0,0.00017534,2]
[392428168,1761465074574,-500.0,0.00017534,2]
[392428169,1761465074583,-1625.42,0.00017534,2]
[392428170,1761465074591,-727.75,0.00017534,2]
[392428171,1761465074602,-500.0,0.00017534,2]
[392428172,1761465074611,-500.0,0.00017534,2]
[392428173,1761465074620,-500.0,0.00017534,2]
[392428174,1761465074629,-500.0,0.00017534,2]
[392428175,1761465074638,-2020.6,0.00017534,2]
[392428176,1761465074647,-500.0,0.00017534,2]
[392428177,1761465074656,-500.0,0.00017534,2]
[392428178,1761465074665,-958.14,0.00017534,2]
[392428179,1761465074673,-500.0,0.00017534,2]
[392428180,1761465074682,-799.25,0.00017534,2]
[392428181,1761465074694,-802.12,0.00017534,2]
[392428182,1761465074703,-500.0,0.00017534,2]
[392428183,1761465074712,-500.0,0.00017534,2]
[392428184,1761465074721,-1511.53,0.00017534,2]
[392428185,1761465074730,-536.38,0.00017534,2]
[392428186,1761465074740,-500.0,0.00017534,2]
[392428187,1761465074749,-977.83,0.00017534,2]
[392428188,1761465074758,-1018.09,0.00017534,2]
[392428189,1761465074766,-1217.77,0.00017534,2]
[392428190,1761465074775,-500.0,0.00017534,2]
[392428191,1761465074784,-735.46,0.00017534,2]
[392428192,1761465074794,-500.0,0.00017534,2]
[392428193,1761465074803,-506.05064995,0.00017534,2]
[392428194,1761465074812,-500.0,0.00017534,2]
[392428195,1761465074821,-532.95,0.00017534,2]
[392428196,1761465074830,-565.47,0.00017534,2]
[392428197,1761465074839,-928.31,0.00017534,2]
[392428198,1761465074848,-520.86,0.00017534,2]
[392428199,1761465074858,-500.0,0.00017534,2]
[392428200,1761465074867,-500.0,0.00017534,2]
[392428201,1761465074876,-816.06,0.00017534,2]
[392428202,1761465074885,-500.0,0.00017534,2]
[392428203,1761465074895,-500.0,0.00017534,2]
[392428204,1761465074904,-1060.12,0.00017534,2]
[392428205,1761465074914,-500.0,0.00017534,2]
[392428206,1761465074926,-992.37,0.00017534,2]
[392428207,1761465074936,-1689.08,0.00017534,2]
[392428208,1761465074945,-1696.5,0.00017534,2]
[392428209,1761465074954,-500.0,0.00017534,2]
[392428210,1761465074963,-555.68,0.00017534,2]
[392428211,1761465074972,-523.61,0.00017534,2]
[392428212,1761465074982,-602.62,0.00017534,2]
[392428213,1761465074991,-390.88400562,0.00017534,2]
[392428214,1761465075001,-804.14,0.00017534,2]
[392428215,1761465075010,-938.7,0.00017534,2]
[392428216,1761465075020,-500.0,0.00017534,2]
[392428217,1761465075029,-1084.59,0.00017534,2]
[392428218,1761465075038,-754.82,0.00017534,2]
[392428219,1761465075047,-672.45,0.00017534,2]
[392428220,1761465075056,-536.64,0.00017534,2]
[392428221,1761465075065,-665.25,0.00017534,2]
[392428222,1761465075075,-1084.62,0.00017534,2]
[392428223,1761465075084,-1054.59,0.00017534,2]
[392428224,1761465075093,-514.82,0.00017534,2]
[392428225,1761465075103,-597.81835803,0.00017534,2]
[392428226,1761465075112,-559.76,0.00017534,2]
[392428227,1761465075121,-500.0,0.00017534,2]
[392428228,1761465075131,-500.0,0.00017534,2]
[392428229,1761465075141,-624.18,0.00017534,2]
[392428230,1761465075150,-500.0,0.00017534,2]
[392428231,1761465075160,-588.78,0.00017534,2]
[392428232,1761465075170,-1181.93,0.00017534,2]
[392428233,1761465075179,-500.0,0.00017534,2]
[392428234,1761465075189,-913.81,0.00017534,2]
[392428235,1761465075198,-500.0,0.00017534,2]
[392428236,1761465075208,-1623.58,0.00017534,2]
[392428237,1761465075218,-500.0,0.00017534,2]
[392428238,1761465075228,-1892.25,0.00017534,2]
[392428239,1761465075238,-500.0,0.00017534,2]
[392428240,1761465075247,-500.0,0.00017534,2]
[392428241,1761465075258,-800.75,0.00017534,2]
[392428242,1761465075267,-500.0,0.00017534,2]
[392428243,1761465075276,-932.1,0.00017534,2]
[392428244,1761465075285,-500.0,0.00017534,2]
[392428245,1761465075295,-500.0,0.00017534,2]
[392428246,1761465075304,-2059.92,0.00017534,2]
[392428247,1761465075313,-2314.16,0.00017534,2]
[392428248,1761465075323,-1046.38,0.00017534,2]
[392428249,1761465075332,-500.0,0.00017534,2]
[392428250,1761465075341,-895.81,0.00017534,2]
[392428251,1761465075352,-748.72,0.00017534,2]
[392428252,1761465075361,-500.0,0.00017534,2]
[392428253,1761465075370,-500.0,0.00017534,2]
[392428254,1761465075380,-500.0,0.00017534,2]
[392428255,1761465075390,-1079.65,0.00017534,2]
[392428256,1761465075400,-566.6,0.00017534,2]
[392428257,1761465075410,-1178.12,0.00017534,2]
[392428258,1761465075420,-573.08,0.00017534,2]
[392428259,1761465075431,-1167.47,0.00017534,2]
[392428260,1761465075440,-1376.09,0.00017534,2]
[392428261,1761465075451,-500.0,0.00017534,2]
[392428262,1761465075460,-1805.66,0.00017534,2]
[392428263,1761465075469,-800.28,0.00017534,2]
[392428264,1761465075478,-504.37,0.00017534,2]
[392428265,1761465075489,-500.0,0.00017534,2]
[392428266,1761465075498,-1306.14,0.00017534,2]
[392428267,1761465075508,-2926.42,0.00017534,2]
[392428268,1761465075517,-578.74,0.00017534,2]
[392428269,1761465075527,-500.0,0.00017534,2]
[392428270,1761465075535,-500.0,0.00017534,2]
[392428271,1761465075545,-1800.49,0.00017534,2]
[392428272,1761465075554,-12323.94,0.00017534,2]
[392428273,1761465075563,-500.0,0.00017534,2]
[392428274,1761465075573,-860.45,0.00017534,2]
[392428275,1761465075581,-677.74,0.00017534,2]
[392428276,1761465075591,-1339.94,0.00017534,2]
[392428277,1761465075600,-1341.4,0.00017534,2]
[392428278,1761465075609,-577.94,0.00017534,2]
[392428279,1761465075618,-500.0,0.00017534,2]
[392428280,1761465075627,-500.0,0.00017534,2]
[392428281,1761465075636,-160.0,0.00017547,4]
[392428282,1761465075645,-196.0,0.00017564,2]
[392428283,1761465075654,-500.0,0.00017573,2]
[392428284,1761465075663,-196.0,0.00017593,2]
[392428285,1761465075673,-160.0,0.00017596,2]
[392428286,1761465075682,-2116.1631577,0.000176,2]
[392428287,1761465075691,-196.0,0.00017623,2]
[392428288,1761465075700,-720.0,0.00017633,2]
[392428289,1761465075709,-2900.0,0.00017634,2]
[392428290,1761465075719,-196.0,0.00017653,2]
[392428291,1761465075729,-196.0,0.00017683,2]
[392428292,1761465075740,-3095.42,0.00017699,2]
[392428293,1761465075750,-1171.42480363,0.00017712,2]
[392428294,1761465075761,-3000.0,0.00017712,2]
[392428295,1761465075770,-3000.0,0.00017712,2]
[392428296,1761465075780,-3000.0,0.00017712,2]
[392428297,1761465075789,-3000.0,0.00017712,2]
[392428298,1761465075798,-3000.0,0.00017712,2]
[392428299,1761465075809,-3000.0,0.00017712,2]
[392428300,1761465075819,-3000.0,0.00017712,2]
[392428301,1761465075829,-2375.29920433,0.00017712,2]
[392428302,1761465075838,-196.0,0.00017713,2]
[392428303,1761465075847,-196.0,0.00017742,2]
[392428304,1761465075856,-338.50747343,0.00017753,2]
[392428305,1761465075865,-196.0,0.00017772,2]
[392428306,1761465075874,-196.0,0.00017802,2]
[392428307,1761465075885,-500.0,0.00017808,2]
[392428308,1761465075897,-500.0,0.00017808,2]
[392428309,1761465075907,-500.0,0.00017808,2]
[392428310,1761465075917,-500.0,0.00017808,2]
[392428311,1761465075932,-500.0,0.00017808,2]
[392428312,1761465075941,-500.0,0.00017808,2]
[392428313,1761465075950,-500.0,0.00017808,2]
[392428314,1761465075959,-500.0,0.00017808,2]
[392428315,1761465075968,-508.23,0.00017808,2]
[392428316,1761465075978,-730.25,0.00017808,2]
[392428317,1761465075988,-500.0,0.00017808,2]
[392428318,1761465075998,-500.0,0.00017808,2]
[392428319,1761465076007,-1000.0,0.00017808,2]
[392428320,1761465076017,-500.0,0.00017808,2]
[392428321,1761465076027,-500.0,0.00017808,2]
[392428322,1761465076036,-500.0,0.00017808,2]
[392428323,1761465076045,-500.0,0.00017808,2]
[392428324,1761465076055,-509.62914383,0.00017808,2]
[392428325,1761465076064,-500.0,0.00017808,2]
[392428326,1761465076073,-500.0,0.00017808,2]
[392428327,1761465076083,-500.0,0.00017808,2]
[392428328,1761465076093,-500.0,0.00017808,2]
[392428329,1761465076102,-534.14474324,0.00017808,2]
[392428330,1761465076111,-472.36991708,0.00017808,2]
[392428331,1761465076120,-500.0,0.00017808,2]
[392428332,1761465076130,-500.0,0.00017808,2]
[392428333,1761465076139,-638.1,0.00017808,2]
[392428334,1761465076148,-500.0,0.00017808,2]
[392428335,1761465076159,-175.94548756,0.00017808,2]
[392428336,1761465076168,-512.53781568,0.00017808,2]
[392428337,1761465076177,-500.0,0.00017808,2]
[392428338,1761465076186,-500.0,0.00017808,2]
[392428339,1761465076195,-500.0,0.00017808,2]
[392428340,1761465076204,-500.0,0.00017808,2]
[392428341,1761465076213,-500.0,0.00017808,2]
[392428342,1761465076222,-500.0,0.00017808,2]
[392428343,1761465076231,-852.77,0.00017808,2]
[392428344,1761465076240,-1000.0,0.00017808,2]
[392428345,1761465076249,-500.0,0.00017808,2]
[392428346,1761465076258,-742.96,0.00017808,2]
[392428347,1761465076267,-384.44206199,0.00017808,2]
[392428348,1761465076276,-1003.4,0.00017808,2]
[392428349,1761465076284,-1352.49,0.00017808,2]
[392428350,1761465076294,-500.0,0.00017808,2]
[392428351,1761465076303,-1883.36,0.00017808,2]
[392428352,1761465076311,-780.75,0.00017808,2]
[392428353,1761465076321,-747.54,0.00017808,2]